bitfinex-derivatives/quotes_ETHF0:USTF0_20241230
["timestamp","ask_amount","ask_price","bid_price","bid_amount"]
[1735537173654,0.73873,3396.8,3396.5,0.29504]
[1735537173958,0.29506,3396.4,3396.1,0.29508]
[1735537174153,3.2078,3396.6,3395.8,3.2078]
[1735537174350,0.29509,3396.1,3395.8,3.5029]
[1735537174668,1.6177,3396.0,3395.8,3.2078]
[1735537174854,1.3226,3396.0,3395.8,15.9]
[1735537175053,0.29511,3395.9,3395.8,15.9]
[1735537175252,1.3226,3396.0,3395.4,3.2078]
[1735537175454,0.29511,3395.8,3395.5,0.29513]
[1735537175850,1.3226,3396.0,3395.4,3.2078]
[1735537176053,0.29512,3395.7,3395.4,3.2078]
[1735537176251,0.29511,3395.9,3395.4,3.2078]
[1735537176459,0.29511,3395.9,3395.5,0.29513]
[1735537176957,1.3226,3396.0,3395.4,3.2078]
[1735537177152,0.2951,3395.9,3395.5,0.29513]
[1735537177955,1.3226,3396.0,3395.4,3.2078]
[1735537178155,1.3226,3396.0,3395.7,0.29512]
[1735537178356,1.3226,3396.0,3395.8,0.2951]
[1735537178557,1.3226,3396.0,3395.7,0.29512]
[1735537180357,1.3226,3396.0,3395.6,2.3728357]
[1735537180659,1.3226,3396.0,3395.7,0.29512]
[1735537182056,1.3226,3396.0,3395.6,0.29512]
[1735537182257,1.61769,3396.0,3395.6,0.29512]
[1735537182663,1.3226,3396.0,3395.6,0.29512]
[1735537184361,0.2951,3395.9,3395.5,0.29513]
[1735537184662,1.3226,3396.0,3395.4,3.2078]
[1735537184867,1.6177,3396.0,3395.5,0.29513]
[1735537185360,1.6177,3396.0,3395.6,0.29513]
[1735537185966,1.3226,3396.0,3395.4,3.2078]
[1735537186163,1.3226,3396.0,3395.7,0.29511]
[1735537188965,1.6177,3396.0,3395.4,3.2078]
[1735537189266,1.6177,3396.0,3395.6,0.29512]
[1735537190159,1.3226,3396.0,3395.4,3.2078]
[1735537190366,1.3226,3396.0,3395.7,0.29511]
[1735537190971,1.61769,3396.0,3395.6,0.29512]
[1735537193266,1.61769,3396.0,3395.4,3.2078]
[1735537193267,1.3226,3396.0,3395.4,3.2078]
[1735537193567,1.61769,3396.0,3395.6,0.29512]
[1735537197569,0.4408,3396.0,3395.8,0.2951]
[1735537198171,0.4408,3396.0,3395.6,2.3728357]
[1735537198375,0.4408,3396.0,3395.8,3.2078]
[1735537198671,0.4446,3395.9,3395.8,3.2078]
[1735537198873,0.7397,3395.9,3395.8,3.2078]
[1735537200171,1.1608,3395.9,3395.8,3.2078]
[1735537200360,1.1608,3395.9,3395.8,3.50291]
[1735537200566,0.8657,3395.9,3395.8,3.2078]
[1735537200762,1.1608,3395.9,3395.8,3.2078]
[1735537201869,1.1608,3395.9,3395.8,3.50291]
[1735537202968,0.8657,3395.9,3395.8,3.50291]
[1735537205876,0.8657,3395.9,3395.8,3.2078]
[1735537206083,1.1608,3395.9,3395.8,3.2078]
[1735537206474,0.8657,3395.9,3395.8,3.2078]
[1735537206676,1.1608,3395.9,3395.8,3.2078]
[1735537207178,1.1608,3395.9,3395.4,4.63542903]
[1735537207179,0.29513,3395.5,3395.4,4.63542903]
[1735537207771,0.8657,3395.9,3395.4,4.63542903]
[1735537207971,0.29513,3395.6,3395.4,4.63542903]
[1735537208172,0.29513,3395.5,3395.4,4.63542903]
[1735537208771,0.29515,3395.3,3395.2,7.84322903]
[1735537209978,3.2078,3395.8,3395.2,7.84322903]
[1735537210179,3.2078,3395.8,3395.5,0.29513]
[1735537210380,7.81321041,3395.8,3395.7,0.29512]
[1735537211078,7.81321041,3395.8,3395.7,16.19512]
[1735537211274,7.81321041,3395.8,3395.7,15.9]
[1735537211682,3.2078,3395.8,3395.7,16.19512]
[1735537212176,4.60541041,3396.3,3395.7,15.9]
[1735537212481,4.60541041,3396.3,3396.2,0.29507]
[1735537213072,0.4487,3396.4,3396.3,0.29506]
[1735537213676,5.51111041,3396.6,3396.1,2.3728357]
[1735537213879,5.51111041,3396.6,3396.5,0.29505]
[1735537214176,4.60541041,3396.6,3396.5,0.29505]
[1735537214379,4.60541041,3396.6,3396.5,3.50285]
[1735537214587,0.425,3397.0,3396.5,3.656]
[1735537214588,3.89915432,3397.0,3396.5,3.656]
[1735537214880,3.89915432,3397.0,3396.8,0.29501]
[1735537215476,0.425,3397.0,3396.9,0.29501]
[1735537215681,0.425,3397.0,3396.8,0.29502]
[1735537215873,0.425,3397.0,3396.7,2.6678557]
[1735537216076,0.425,3397.0,3396.8,0.29502]
[1735537216280,0.425,3397.0,3396.9,0.29501]
[1735537216475,0.425,3397.0,3396.9,19.40281]
[1735537217675,3.47415432,3397.4,3397.3,0.29498]
[1735537218074,3.47415432,3397.4,3397.3,3.50278]
[1735537218271,3.47415432,3397.5,3397.3,3.2078]
[1735537218485,3.47415432,3397.5,3397.4,0.29497]
[1735537220177,0.8605,3397.6,3397.3,0.29497]
[1735537220377,0.8605,3397.6,3397.4,0.29496]
[1735537220578,0.8605,3397.6,3397.1,0.4419]
[1735537220784,0.8605,3397.6,3397.5,0.29496]
[1735537222674,0.8605,3397.6,3397.4,0.29496]
[1735537223079,2.3728357,3397.5,3396.7,6.95314355]
[1735537223282,3.2078,3396.9,3396.5,2.6793021]
[1735537223583,0.29504,3396.6,3396.5,0.2626021]
[1735537223785,0.29504,3396.6,3396.3,11.57130869]
[1735537223980,1.3149,3396.8,3395.9,0.29509]
[1735537224182,0.29505,3396.5,3395.9,0.29509]
[1735537224483,0.29505,3396.5,3396.0,0.29509]
[1735537226585,1.3149,3396.8,3396.0,0.29509]
[1735537226786,0.29506,3396.4,3396.0,0.29509]
[1735537226988,0.29506,3396.4,3395.9,0.2951]
[1735537227588,0.29509,3396.1,3395.7,3.2078]
[1735537227780,0.4491,3396.0,3395.7,3.2078]
[1735537227982,0.74419,3396.0,3395.7,3.2078]
[1735537228179,0.4491,3396.0,3395.7,3.2078]
[1735537228382,0.4491,3396.0,3394.8,18.845]
[1735537228383,0.29515,3395.4,3395.2,3.2078]
[1735537228579,0.29515,3395.3,3395.2,3.2078]
[1735537228784,0.29511,3395.8,3395.2,3.2078]
[1735537228983,0.8929,3395.9,3395.2,3.2078]
[1735537229282,0.29514,3395.4,3395.2,3.2078]
[1735537230187,0.29515,3395.3,3395.2,3.2078]
[1735537230590,0.29515,3395.3,3394.9,0.29518]
[1735537231385,0.29515,3395.4,3395.0,0.29518]
[1735537232083,0.29515,3395.4,3395.1,0.29517]
[1735537232283,0.29515,3395.4,3395.0,0.29518]
[1735537232494,0.29516,3395.3,3394.9,0.29518]
[1735537233085,0.29515,3395.4,3395.0,0.29518]
[1735537234186,3.2078,3395.7,3394.8,21.9168357]
[1735537234389,0.29513,3395.6,3395.3,3.50295]
[1735537234992,0.29513,3395.6,3395.4,15.9]
[1735537235185,0.8929,3395.9,3395.4,15.9]
[1735537235392,1.18801,3395.9,3395.4,18.2728357]
[1735537235592,0.4491,3396.0,3395.9,0.2951]
[1735537235797,3.2078,3396.1,3396.0,0.29509]
[1735537235998,3.2078,3396.1,3395.7,2.3728357]
[1735537236195,3.2078,3396.1,3396.0,15.9]
[1735537239605,3.50289,3396.1,3395.6,0.29512]
[1735537239800,0.4509,3396.0,3395.6,0.29512]
[1735537240006,0.4509,3396.0,3395.7,15.9]
[1735537241306,0.4509,3396.0,3395.7,16.19512]
[1735537241902,0.74599,3396.0,3395.7,16.19512]
[1735537242410,0.4509,3396.0,3395.7,15.9]
[1735537242606,0.4509,3396.0,3395.8,0.29511]
[1735537242904,0.746,3396.0,3395.7,16.19511]
[1735537243406,0.4509,3396.0,3395.7,18.2728357]
[1735537243603,0.4509,3396.0,3395.8,0.29511]
[1735537244208,0.4509,3396.0,3395.7,18.2728357]
[1735537244411,0.74599,3396.0,3395.7,18.5679457]
[1735537244907,0.74599,3396.0,3395.7,18.2728357]
[1735537245109,0.74599,3396.0,3395.8,0.29511]
[1735537245609,0.74599,3396.0,3395.7,18.5679457]
[1735537245813,0.74599,3396.0,3395.7,16.19511]
[1735537246812,0.2951,3395.9,3395.6,0.29512]
[1735537247008,0.2951,3395.9,3395.4,2.3728357]
[1735537247009,0.4379,3395.8,3395.4,2.3728357]
[1735537247205,0.4379,3395.8,3395.7,0.29512]
[1735537247613,0.4379,3395.8,3395.7,3.50292]
[1735537248708,0.4293,3395.9,3395.7,3.2078]
[1735537248915,0.4293,3395.9,3395.8,0.29511]
[1735537251612,0.4293,3395.9,3395.7,0.29511]
[1735537251916,0.4293,3395.9,3395.8,0.29511]
[1735537252218,0.4509,3396.0,3395.8,0.29511]
[1735537252710,0.4567,3396.3,3395.7,2.3728357]
[1735537252910,4.0615,3396.4,3396.3,0.29506]
[1735537253116,0.8537,3396.4,3396.3,0.29506]
[1735537253524,3.47415432,3396.5,3396.3,0.29506]
[1735537253818,0.8621,3396.7,3396.3,0.29506]
[1735537254015,0.29504,3396.6,3396.3,0.29506]
[1735537254216,0.8621,3396.7,3396.5,0.29505]
[1735537254818,3.2078,3396.8,3396.7,0.29503]
[1735537255121,3.47415432,3396.9,3396.8,0.29502]
[1735537255315,3.47415432,3397.1,3397.0,0.295]
[1735537256318,3.47415432,3397.1,3396.9,2.3728357]
[1735537256620,3.47415432,3397.1,3396.8,16.19502]
[1735537256823,0.29499,3397.2,3396.8,16.19502]
[1735537257620,0.29498,3397.3,3396.9,0.29501]
[1735537257923,0.295,3397.1,3396.8,15.9]
[1735537258114,3.6375,3397.4,3396.8,15.9]
[1735537258313,3.6375,3397.4,3396.4,3.2078]
[1735537258518,0.295,3397.1,3396.7,0.29502]
[1735537258718,0.29499,3397.2,3396.8,0.29502]
[1735537259325,3.6375,3397.4,3396.6,2.3728357]
[1735537259326,0.29498,3397.3,3396.9,0.29501]
[1735537259522,3.6375,3397.4,3396.9,16.19501]
[1735537259825,0.29499,3397.2,3396.9,15.9]
[1735537260222,0.29499,3397.2,3396.9,16.19501]
[1735537260525,0.29498,3397.3,3396.9,0.29501]
[1735537261426,3.6375,3397.4,3396.9,2.3728357]
[1735537261724,3.6375,3397.4,3397.3,0.29498]
[1735537262523,3.2078,3397.4,3397.3,0.29498]
[1735537263121,3.2078,3397.4,3397.0,2.3728357]
[1735537263320,3.2078,3397.4,3397.2,0.29499]
[1735537263521,3.2078,3397.4,3397.3,0.29498]
[1735537263927,3.2078,3397.4,3397.2,0.29498]
[1735537264120,3.2078,3397.4,3397.3,0.29498]
[1735537264932,0.73006,3397.6,3397.3,0.29498]
[1735537265127,0.4351,3397.6,3397.2,0.29498]
[1735537265432,0.29496,3397.5,3397.3,0.29498]
[1735537265833,1.14705,3397.6,3397.3,0.29498]
[1735537266035,0.8521,3397.6,3397.5,0.29496]
[1735537266728,0.4248,3397.9,3397.7,0.29494]
[1735537267230,0.71973,3397.9,3397.6,0.29495]
[1735537267428,3.47415432,3398.0,3397.9,0.29493]
[1735537268328,3.47415432,3398.0,3397.9,2.6677657]
[1735537268529,0.4389,3398.3,3398.2,0.2949]
[1735537268737,3.47415432,3398.4,3398.3,0.29489]
[1735537268937,3.47415432,3398.4,3398.3,3.50269]
[1735537269234,3.47415432,3398.4,3398.3,19.40269]
[1735537270527,0.4234,3399.0,3398.3,19.40269]
[1735537270528,0.4304,3399.1,3398.3,19.1078]
[1735537270728,0.4304,3399.1,3399.0,0.29483]
[1735537272430,0.4304,3399.1,3398.8,3.2078]
[1735537272733,0.4304,3399.1,3399.0,0.29483]
[1735537273129,3.2078,3399.3,3398.9,2.3728357]
[1735537273329,3.2078,3399.3,3399.2,0.29481]
[1735537276026,0.8814,3399.4,3399.2,2.3728357]
[1735537276229,0.8814,3399.4,3399.3,0.2948]
[1735537277228,0.4557,3399.7,3399.2,5.5806357]
[1735537277432,0.4557,3399.7,3399.3,0.2948]
[1735537277635,0.4557,3399.7,3398.8,3.2078]
[1735537277834,0.4557,3399.7,3398.9,0.29483]
[1735537277835,0.29481,3399.3,3398.9,0.29483]
[1735537278034,0.29481,3399.3,3398.8,3.2078]
[1735537278238,0.4557,3399.7,3398.8,3.2078]
[1735537278640,0.4557,3399.7,3399.0,2.3728357]
[1735537278835,0.75047,3399.7,3399.3,0.2948]
[1735537279038,0.4557,3399.7,3399.4,0.29479]
[1735537279733,0.4557,3399.7,3399.3,0.2948]
[1735537279941,0.75047,3399.7,3399.2,0.29481]
[1735537280140,0.75047,3399.7,3399.0,2.3728357]
[1735537280339,0.75047,3399.7,3399.3,0.2948]
[1735537282439,0.4557,3399.7,3399.4,0.29479]
[1735537283334,0.4557,3399.7,3399.3,3.2078]
[1735537283740,0.29478,3399.6,3399.3,3.2078]
[1735537284137,0.29478,3399.6,3399.2,0.29481]
[1735537284640,0.29479,3399.4,3399.0,0.29482]
[1735537285338,0.4557,3399.7,3398.8,3.2078]
[1735537285339,0.29483,3399.0,3398.8,3.2078]
[1735537285645,1.2802,3398.9,3398.8,3.50265]
[1735537286138,1.2802,3398.9,3398.8,3.2078]
[1735537288539,1.2802,3398.9,3398.8,3.50265]
[1735537289235,0.29477,3399.7,3399.3,0.2948]
[1735537289541,0.29477,3399.7,3398.8,3.2078]
[1735537289542,0.29477,3399.7,3398.9,3.2577357]
[1735537289741,0.29477,3399.7,3399.4,0.29479]
[1735537289941,0.29477,3399.7,3399.5,15.9]
[1735537290146,1.57716,3399.8,3399.5,15.9]
[1735537290842,1.2824,3399.8,3399.5,16.19478]
[1735537291446,1.57716,3399.8,3399.5,15.9]
[1735537292044,1.57716,3399.8,3399.5,16.19478]
[1735537292941,1.2824,3399.8,3399.5,15.9]
[1735537293144,0.29477,3399.7,3399.5,15.9]
[1735537294140,0.29478,3399.6,3399.5,15.9]
[1735537294750,0.29478,3399.6,3399.2,0.29481]
[1735537294944,1.2824,3399.8,3398.9,3.2577357]
[1735537295245,0.29479,3399.5,3399.0,15.9]
[1735537295441,0.29479,3399.5,3399.2,0.29481]
[1735537296041,0.29478,3399.6,3398.8,3.6373]
[1735537296245,1.2824,3399.8,3398.9,15.9]
[1735537296446,0.29477,3399.7,3399.3,0.2948]
[1735537296640,1.2824,3399.8,3399.3,0.2948]
[1735537296840,0.29478,3399.6,3399.3,0.2948]
[1735537297342,1.2824,3399.8,3399.4,0.29479]
[1735537297939,1.57716,3399.8,3399.5,0.29478]
[1735537298447,1.2824,3399.8,3399.7,0.29477]
[1735537299550,1.2824,3399.8,3399.6,0.29477]
[1735537301444,1.57716,3399.8,3399.5,0.29478]
[1735537301646,1.2824,3399.8,3399.5,0.29478]
[1735537302246,1.57716,3399.8,3399.5,0.29478]
[1735537302945,1.2824,3399.8,3399.4,0.29479]
[1735537303152,1.57717,3399.8,3399.5,0.29478]
[1735537304147,0.29477,3399.7,3399.4,0.29479]
[1735537305345,1.2824,3399.8,3399.2,3.2078]
[1735537305853,0.29479,3399.5,3399.3,0.2948]
[1735537306147,1.2824,3399.8,3399.3,0.2948]
[1735537306453,1.2824,3399.8,3399.2,3.2078]
[1735537306654,0.2948,3399.3,3398.9,15.9]
[1735537306954,0.8733,3399.2,3398.9,15.9]
[1735537307257,0.8733,3399.2,3399.1,0.29482]
[1735537310268,1.16812,3399.2,3398.9,15.9]
[1735537310457,0.8733,3399.2,3399.0,0.29483]
[1735537311166,0.8733,3399.2,3399.1,0.29482]
[1735537313765,0.8733,3399.2,3398.9,15.9]
[1735537313966,0.00194736,3399.1,3399.0,0.29483]
[1735537315571,0.00194736,3399.1,3399.0,3.50263]
[1735537316466,0.00194736,3399.1,3399.0,14.78029698]
[1735537317975,0.00194736,3399.1,3399.0,16.75946861]
[1735537319174,0.00194736,3399.1,3399.0,7.92193213]
[1735537323881,0.00194736,3399.1,3399.0,16.7592912]
[1735537325171,0.00194736,3399.1,3399.0,7.92193213]
[1735537325579,0.00194736,3399.1,3399.0,9.21198156]
[1735537326680,0.00194736,3399.1,3399.0,20.78329025]
[1735537327080,2.30144581,3399.6,3399.5,0.29479]
[1735537327278,2.30144581,3399.6,3399.5,7.0714257]
[1735537327679,2.30144581,3399.6,3399.5,22.9714257]
[1735537328177,2.30144581,3399.9,3399.5,27.09593783]
[1735537328377,2.73644581,3399.9,3399.8,0.29476]
[1735537329379,2.30144581,3399.9,3399.8,2.6675957]
[1735537330180,2.30144581,3400.1,3400.0,0.29474]
[1735537330483,2.30144581,3400.1,3400.0,5.8753757]
[1735537331980,0.435,3400.2,3400.1,0.29473]
[1735537334886,0.435,3400.2,3400.0,3.50253]
[1735537335087,0.435,3400.2,3400.0,3.2078]
[1735537335286,0.435,3400.2,3400.1,0.29473]
[1735537337188,0.435,3400.2,3400.0,3.2078]
[1735537337491,0.72973,3400.2,3400.0,0.29474]
[1735537338091,0.435,3400.2,3400.0,0.29474]
[1735537338494,0.435,3400.2,3400.1,0.29473]
[1735537339592,0.8475,3400.2,3400.1,0.29473]
[1735537341998,0.8475,3400.2,3400.1,3.50253]
[1735537342794,0.8475,3400.2,3400.1,19.40253]
[1735537345695,2.30144581,3400.9,3400.8,0.29467]
[1735537346092,2.75444581,3400.9,3400.8,0.29467]
[1735537346497,0.453,3400.9,3400.8,0.29467]
[1735537347093,1.3137,3400.9,3400.8,0.29467]
[1735537349900,1.3137,3400.9,3400.7,0.29468]
[1735537350797,1.60837,3400.9,3400.6,0.29469]
[1735537351399,1.60837,3400.9,3400.2,2.3728357]
[1735537351400,0.29469,3400.7,3400.4,0.2947]
[1735537352294,1.60837,3400.9,3400.6,0.29469]
[1735537352489,1.3137,3400.9,3400.8,3.50247]
[1735537354603,1.3137,3400.9,3400.8,3.2078]
[1735537355197,0.4226,3400.9,3400.8,3.50247]
[1735537355894,0.4226,3400.9,3400.8,19.40247]
[1735537358598,3.50242,3401.5,3401.2,0.29463]
[1735537358800,4.78362,3401.5,3401.2,0.29463]
[1735537358999,2.30144581,3401.4,3401.3,0.29463]
[1735537359698,2.30144581,3401.4,3401.3,2.6674657]
[1735537360096,2.30144581,3401.4,3401.3,3.1085657]
[1735537360495,2.30144581,3401.4,3401.3,4.2915657]
[1735537360802,0.93224581,3401.4,3401.3,9.2915657]
[1735537361102,0.4507,3402.0,3401.3,18.2728357]
[1735537361297,0.4212,3401.5,3401.4,0.29462]
[1735537363402,0.4212,3401.5,3401.3,2.3728357]
[1735537363403,0.71582,3401.5,3401.3,2.3728357]
[1735537363603,0.4374,3401.4,3401.3,2.3728357]
[1735537363806,0.4374,3401.4,3401.3,2.6674657]
[1735537365911,3.2078,3401.4,3400.7,4.60379774]
[1735537366213,0.8846,3401.3,3400.8,2.3728357]
[1735537366513,0.8846,3401.3,3401.1,2.3728357]
[1735537366709,0.4316,3401.6,3401.1,5.5806357]
[1735537366909,0.4316,3401.6,3401.5,5.8752457]
[1735537367614,0.4316,3401.6,3401.5,21.7752457]
[1735537368014,0.4316,3401.6,3401.5,21.4806357]
[1735537368216,0.4316,3401.6,3401.5,19.40241]
[1735537368613,0.4316,3401.6,3401.5,21.7752457]
[1735537370615,0.4316,3401.6,3401.5,19.1078]
[1735537371716,0.4316,3401.6,3401.5,19.40241]
[1735537371918,0.4316,3401.6,3401.5,19.1078]
[1735537373122,0.4316,3401.6,3401.5,3.2078]
[1735537377119,3.47304038,3402.2,3402.1,0.29456]
[1735537377315,3.47304038,3402.2,3402.1,5.8751957]
[1735537377521,3.47304038,3402.2,3402.1,21.7751957]
[1735537378323,3.47304038,3402.2,3402.1,26.7751957]
[1735537378521,3.47304038,3402.8,3402.7,0.29451]
[1735537378718,3.47304038,3402.8,3402.7,5.8751457]
[1735537379022,3.47304038,3402.8,3402.7,2.3728357]
[1735537380523,0.8654,3402.9,3402.7,2.3728357]
[1735537380831,1.15989,3402.9,3402.4,2.6673657]
[1735537381023,0.2945,3402.8,3402.4,2.3728357]
[1735537381221,0.29451,3402.7,3402.4,2.3728357]
[1735537381725,0.73352,3402.6,3402.4,2.3728357]
[1735537381930,0.439,3402.6,3402.4,2.3728357]
[1735537382431,0.29452,3402.5,3402.4,2.3728357]
[1735537383333,0.29453,3402.4,3402.3,3.2078]
[1735537383629,0.439,3402.6,3402.3,3.2078]
[1735537383630,0.29453,3402.5,3402.3,3.2078]
[1735537383828,0.73352,3402.6,3402.4,2.3728357]
[1735537384235,0.29452,3402.5,3402.4,2.3728357]
[1735537384530,0.439,3402.6,3402.4,2.6673657]
[1735537389241,0.439,3402.6,3402.5,0.29452]
[1735537391539,0.8654,3402.9,3402.8,0.2945]
[1735537391842,0.8654,3402.9,3402.8,3.5023]
[1735537392044,0.8654,3402.9,3402.8,19.4023]
[1735537393440,6.68084038,3403.9,3402.8,19.1078]
[1735537393643,1.2798,3403.4,3403.3,0.29445]
[1735537395542,1.2798,3403.4,3403.2,0.29446]
[1735537396036,1.2798,3403.4,3403.3,0.29445]
[1735537396945,1.2798,3403.4,3403.2,0.29446]
[1735537397248,1.2798,3403.4,3403.3,15.9]
[1735537397644,1.57425,3403.4,3403.3,15.9]
[1735537397846,1.2798,3403.4,3403.2,0.29446]
[1735537398049,1.2798,3403.4,3403.3,0.29445]
[1735537398845,1.2798,3403.4,3402.8,5.5806357]
[1735537399046,1.2798,3403.4,3403.0,0.29448]
[1735537399248,0.29447,3403.2,3402.9,15.9]
[1735537399447,0.29447,3403.2,3403.0,0.29448]
[1735537399849,0.29448,3403.1,3402.9,15.9]
[1735537400243,1.2798,3403.4,3402.9,15.9]
[1735537400447,0.29445,3403.3,3403.0,0.29448]
[1735537400953,1.2798,3403.4,3403.2,0.29446]
[1735537401254,1.2798,3403.4,3403.3,0.29445]
[1735537401451,1.2798,3403.4,3403.2,0.29446]
[1735537402545,1.57425,3403.4,3403.0,0.29447]
[1735537402949,1.57425,3403.4,3403.1,0.29447]
[1735537403349,1.2798,3403.4,3403.2,0.29446]
[1735537403756,1.2798,3403.4,3403.3,3.2078]
[1735537404353,1.57425,3403.4,3403.3,3.2078]
[1735537404659,1.2798,3403.4,3403.3,3.50225]
[1735537404858,1.2798,3403.4,3403.3,3.2078]
[1735537405353,1.2798,3403.4,3403.3,3.50225]
[1735537405751,1.2798,3403.4,3403.3,3.2078]
[1735537406260,1.2798,3403.4,3403.3,3.50225]
[1735537407157,1.57425,3403.4,3403.3,3.2078]
[1735537410158,0.29448,3403.0,3402.8,3.2078]
[1735537410359,0.29449,3402.9,3402.8,3.2078]
[1735537410561,0.70829,3402.9,3402.8,3.2078]
[1735537416462,0.2945,3402.8,3402.7,15.9]
[1735537416658,0.29456,3402.1,3402.0,3.2078]
[1735537417061,0.29456,3402.1,3402.0,19.1078]
[1735537419464,0.29456,3402.1,3402.0,3.2078]
[1735537423161,5.84587608,3402.7,3401.9,15.9]
[1735537423360,1.14027,3402.0,3401.9,15.9]
[1735537423965,0.2946,3401.6,3401.5,3.2078]
[1735537425460,4.31874038,3402.0,3401.5,3.2078]
[1735537425662,0.29458,3401.9,3401.6,0.2946]
[1735537426170,3.89134038,3402.0,3401.9,0.29457]
[1735537426670,3.47304038,3402.3,3402.2,0.29455]
[1735537426862,3.47304038,3402.3,3402.2,16.9673857]
[1735537428274,0.4481,3402.5,3402.4,0.29453]
[1735537428771,0.4481,3402.5,3402.2,16.6728357]
[1735537428970,0.74262,3402.5,3402.3,0.29454]
[1735537432678,3.47304038,3403.0,3402.4,3.2078]
[1735537432877,0.7236,3402.8,3402.4,3.2078]
[1735537433071,0.29451,3402.7,3402.5,0.29452]
[1735537433774,0.4291,3402.8,3402.4,3.2078]
[1735537433973,0.7236,3402.8,3402.6,0.29451]
[1735537434374,3.47304038,3403.0,3402.5,2.3728357]
[1735537434574,3.47304038,3403.0,3402.9,0.29449]
[1735537434976,0.29447,3403.2,3403.0,0.29448]
[1735537435375,3.47304038,3403.3,3402.8,5.5806357]
[1735537435574,3.47304038,3403.3,3402.9,0.29449]
[1735537435778,0.29447,3403.2,3402.9,0.29449]
[1735537437282,0.29447,3403.2,3402.9,3.50229]
[1735537437477,0.29446,3403.3,3402.9,3.50229]
[1735537437679,0.847,3403.5,3402.9,3.50229]
[1735537437976,0.29446,3403.2,3402.9,3.50229]
[1735537438377,0.29444,3403.4,3402.9,3.2078]
[1735537438579,0.29447,3403.2,3402.9,3.2078]
[1735537439580,0.847,3403.5,3402.9,3.2078]
[1735537439878,0.847,3403.5,3403.3,3.2078]
[1735537440081,0.847,3403.5,3403.3,3.50225]
[1735537440273,0.4291,3403.5,3403.4,2.6672757]
[1735537440988,0.4291,3403.5,3403.3,3.2078]
[1735537441484,0.4291,3403.5,3403.3,3.50225]
[1735537441687,0.72354,3403.5,3403.4,14.3]
[1735537442188,0.4291,3403.5,3403.0,0.29447]
[1735537442381,0.29446,3403.3,3403.0,0.29447]
[1735537442581,0.74866,3403.2,3402.9,8.10607774]
[1735537442788,0.74866,3403.2,3403.0,0.29448]
[1735537442789,1.17246,3403.2,3403.0,0.29448]
[1735537442981,0.878,3403.2,3403.0,0.29448]
[1735537444080,0.878,3403.2,3402.9,3.2078]
[1735537444282,0.29448,3403.0,3402.9,3.2078]
[1735537446583,0.29446,3403.2,3402.9,3.50228]
[1735537446778,3.90214038,3403.5,3402.9,3.2078]
[1735537446983,0.29448,3403.0,3402.9,3.2078]
[1735537447289,0.29448,3403.0,3402.4,1.179]
[1735537447290,3.6422,3403.1,3402.4,0.29453]
[1735537447491,0.8893,3402.9,3402.5,14.3]
[1735537447886,0.29451,3402.6,3402.5,14.3]
[1735537448079,0.8893,3402.9,3402.4,4.60379774]
[1735537448386,0.72892,3402.5,3402.4,4.60379774]
[1735537448584,0.4344,3402.5,3402.4,4.60379774]
[1735537449791,0.29455,3402.3,3401.9,8.10616774]
[1735537449981,0.8568,3402.2,3401.9,7.81159774]
[1735537450187,0.29457,3402.0,3401.9,7.81159774]
[1735537450387,0.29457,3402.0,3401.9,3.2078]
[1735537450788,0.29456,3402.1,3401.6,4.60379774]
[1735537451102,0.29458,3401.8,3401.6,4.60379774]
[1735537451291,0.29459,3401.7,3401.6,4.60379774]
[1735537451484,0.4285,3401.9,3401.6,4.60379774]
[1735537451884,0.4285,3401.9,3401.4,10.42704686]
[1735537451885,0.29458,3401.8,3401.4,3.50242]
[1735537452587,0.29458,3401.8,3401.5,14.3]
[1735537452994,0.2946,3401.7,3401.5,14.3]
[1735537453193,0.4262,3401.6,3401.5,14.3]
[1735537453700,0.4262,3401.6,3401.5,14.59461]
[1735537453701,0.8708,3401.6,3401.5,14.59461]
[1735537454194,0.4262,3401.6,3401.5,14.59461]
[1735537455884,0.4262,3401.6,3401.5,14.3]
[1735537456084,0.4262,3401.6,3401.4,3.2078]
[1735537456285,0.71341,3401.5,3401.4,3.2078]
[1735537456489,0.71341,3401.5,3401.4,2.5217]
[1735537459088,0.4188,3401.5,3401.4,2.5217]
[1735537459294,0.4188,3401.5,3401.3,0.29462]
[1735537459496,0.455,3401.4,3401.3,0.29462]
[1735537459693,0.455,3401.4,3401.0,2.3728357]
[1735537459996,0.455,3401.4,3401.2,0.29463]
[1735537460294,0.455,3401.4,3401.3,3.50243]
[1735537460991,0.455,3401.4,3401.3,17.80243]
[1735537462394,0.4188,3401.5,3401.3,17.5078]
[1735537462599,0.71341,3401.5,3401.3,17.80242]
[1735537462790,0.71922,3401.4,3401.3,17.5078]
[1735537463597,0.4246,3401.4,3401.3,17.5078]
[1735537465102,0.4246,3401.4,3401.3,17.80243]
[1735537466797,0.4246,3401.4,3401.3,3.2078]
[1735537467396,0.4246,3401.4,3401.3,3.50243]
[1735537468096,0.4246,3401.4,3401.3,3.2078]
[1735537468494,0.4246,3401.4,3401.3,3.50243]
[1735537470691,0.4246,3401.4,3401.3,0.29463]
[1735537470900,3.2078,3402.1,3401.3,5.5806357]
[1735537471102,0.4297,3402.2,3402.1,0.29456]
[1735537471410,3.76758038,3402.3,3402.1,0.29456]
[1735537472200,0.29455,3402.2,3402.0,0.29456]
[1735537472395,0.29455,3402.2,3401.9,0.29457]
[1735537472900,0.29455,3402.2,3402.0,14.3]
[1735537473502,0.29455,3402.2,3402.0,14.59456]
[1735537474601,0.29455,3402.3,3402.0,14.59456]
[1735537475000,1.335,3402.4,3402.0,14.59456]